[Event "*** SCC Grand Prix: Titled Tuesday Blitz"]
[Site "Chess.com"]
[Date "2020.07.14"]
[Round "6"]
[White "keepitcool9499"]
[Black "Mikhal867"]
[Result "1-0"]
[WhiteElo "2562"]
[BlackElo "2394"]
[TimeControl "180+1"]
[EndTime "11:05:47 PDT"]
[Termination "keepitcool9499 won by resignation"]

1. d4 {[%clk 0:03:00.9]} 1... g6 {[%clk 0:02:58.9]} 2. c4 {[%clk 0:02:57]} 2...
Bg7 {[%clk 0:02:58.4]} 3. Nc3 {[%clk 0:02:55.6]} 3... c5 {[%clk 0:02:58.2]} 4.
e3 {[%clk 0:02:54.4]} 4... Nf6 {[%clk 0:02:53.9]} 5. Nf3 {[%clk 0:02:52.6]} 5...
O-O {[%clk 0:02:53.6]} 6. d5 {[%clk 0:02:49.6]} 6... e6 {[%clk 0:02:52.7]} 7. e4
{[%clk 0:02:47.8]} 7... exd5 {[%clk 0:02:52]} 8. cxd5 {[%clk 0:02:45.3]} 8...
Re8 {[%clk 0:02:50.5]} 9. Bd3 {[%clk 0:02:40.7]} 9... c4 {[%clk 0:02:49.1]} 10.
Bc2 {[%clk 0:02:38.5]} 10... b5 {[%clk 0:02:42.5]} 11. a3 {[%clk 0:02:36.5]}
11... d6 {[%clk 0:02:39.6]} 12. O-O {[%clk 0:02:33.3]} 12... a6 {[%clk
0:02:33.7]} 13. h3 {[%clk 0:02:30.5]} 13... Nbd7 {[%clk 0:02:32.4]} 14. Bg5
{[%clk 0:02:27.9]} 14... h6 {[%clk 0:02:29.6]} 15. Be3 {[%clk 0:02:25.8]} 15...
Qc7 {[%clk 0:02:25.5]} 16. Qd2 {[%clk 0:02:22.3]} 16... Kh7 {[%clk 0:02:23.7]}
17. Rfe1 {[%clk 0:02:19.9]} 17... Nc5 {[%clk 0:02:20.9]} 18. Bd4 {[%clk
0:02:18.2]} 18... Bd7 {[%clk 0:02:06.2]} 19. e5 {[%clk 0:02:13.3]} 19... dxe5
{[%clk 0:02:01]} 20. Bxe5 {[%clk 0:02:14.2]} 20... Qb6 {[%clk 0:01:56.9]} 21.
Rad1 {[%clk 0:02:11.1]} 21... b4 {[%clk 0:01:47.2]} 22. axb4 {[%clk 0:02:08.2]}
22... Qxb4 {[%clk 0:01:46.3]} 23. Qd4 {[%clk 0:02:07.6]} 23... Nh5 {[%clk
0:01:38.7]} 24. Bxg7 {[%clk 0:01:41.9]} 24... Nxg7 {[%clk 0:01:37.7]} 25. Ne4
{[%clk 0:01:36.5]} 25... Nxe4 {[%clk 0:01:32.4]} 26. Bxe4 {[%clk 0:01:31.4]}
26... Rab8 {[%clk 0:01:19.3]} 27. Ne5 {[%clk 0:01:18.6]} 27... Bf5 {[%clk
0:01:12.7]} 28. Nc6 {[%clk 0:01:15.3]} 28... Qxb2 {[%clk 0:01:11]} 29. Nxb8
{[%clk 0:01:15]} 29... Rxb8 {[%clk 0:00:55.2]} 30. Qxb2 {[%clk 0:01:08.5]} 30...
Rxb2 {[%clk 0:00:54.5]} 31. Bxf5 {[%clk 0:01:08]} 31... Nxf5 {[%clk 0:00:53.9]}
32. d6 {[%clk 0:01:08.2]} 32... Rb8 {[%clk 0:00:36.5]} 33. d7 {[%clk 0:01:05.3]}
33... Rd8 {[%clk 0:00:31.4]} 34. Re8 {[%clk 0:01:05.7]} 1-0

[Event "*** SCC Grand Prix: Titled Tuesday Blitz"]
[Site "Chess.com"]
[Date "2020.07.14"]
[Round "6"]
[White "allvim"]
[Black "realmadridtv"]
[Result "0-1"]
[WhiteElo "2253"]
[BlackElo "2461"]
[TimeControl "180+1"]
[EndTime "11:05:52 PDT"]
[Termination "realmadridtv won by resignation"]

1. e4 {[%clk 0:02:59.6]} 1... e5 {[%clk 0:02:59.5]} 2. Nf3 {[%clk 0:02:59.5]}
2... Nc6 {[%clk 0:03:00]} 3. Bc4 {[%clk 0:02:59.8]} 3... Bc5 {[%clk 0:02:59.4]}
4. O-O {[%clk 0:03:00]} 4... Nf6 {[%clk 0:02:58.8]} 5. d4 {[%clk 0:03:00.6]}
5... Bxd4 {[%clk 0:02:57.1]} 6. Nxd4 {[%clk 0:03:00.5]} 6... Nxd4 {[%clk
0:02:58]} 7. Bg5 {[%clk 0:03:01]} 7... d6 {[%clk 0:02:56.6]} 8. f4 {[%clk
0:03:01.3]} 8... h6 {[%clk 0:02:56.9]} 9. Bh4 {[%clk 0:03:01.4]} 9... Be6 {[%clk
0:02:56.2]} 10. Na3 {[%clk 0:03:00.4]} 10... Qe7 {[%clk 0:02:47.7]} 11. c3
{[%clk 0:02:57.6]} 11... Bxc4 {[%clk 0:02:45.6]} 12. Nxc4 {[%clk 0:02:58.5]}
12... Ne6 {[%clk 0:02:45.2]} 13. fxe5 {[%clk 0:02:46.1]} 13... dxe5 {[%clk
0:02:44.3]} 14. Kh1 {[%clk 0:02:44.8]} 14... g5 {[%clk 0:02:29.9]} 15. Bg3
{[%clk 0:02:31.6]} 15... Nf4 {[%clk 0:02:25.1]} 16. Ne3 {[%clk 0:01:24.5]} 16...
Qe6 {[%clk 0:02:11.5]} 17. Nf5 {[%clk 0:01:22.1]} 17... Kf8 {[%clk 0:02:01.5]}
18. Bxf4 {[%clk 0:01:10.4]} 18... exf4 {[%clk 0:01:54.9]} 19. Qd4 {[%clk
0:01:00.1]} 19... Kg8 {[%clk 0:01:48.5]} 20. Rad1 {[%clk 0:00:50.5]} 20... Kh7
{[%clk 0:01:42.9]} 21. Qc5 {[%clk 0:00:19.6]} 21... Nxe4 {[%clk 0:01:35.6]} 22.
Qb5 {[%clk 0:00:10.2]} 22... a6 {[%clk 0:01:33.3]} 23. Qd5 {[%clk 0:00:07.9]}
23... Qxd5 {[%clk 0:01:29]} 24. Rxd5 {[%clk 0:00:08.8]} 24... Rad8 {[%clk
0:01:29.3]} 25. Re5 {[%clk 0:00:09.2]} 25... Rhe8 {[%clk 0:01:26.4]} 26. Rxe8
{[%clk 0:00:07.9]} 26... Rxe8 {[%clk 0:01:27.3]} 27. Kg1 {[%clk 0:00:06.8]}
27... Kg6 {[%clk 0:01:23.5]} 28. Nd4 {[%clk 0:00:07]} 28... c5 {[%clk
0:01:23.7]} 29. Nf3 {[%clk 0:00:07.3]} 29... g4 {[%clk 0:01:20.9]} 30. Ne1
{[%clk 0:00:05.4]} 30... Nd2 {[%clk 0:01:19.6]} 0-1

[Event "*** SCC Grand Prix: Titled Tuesday Blitz"]
[Site "Chess.com"]
[Date "2020.07.14"]
[Round "6"]
[White "Ze-Pequeno"]
[Black "r31415"]
[Result "0-1"]
[WhiteElo "2253"]
[BlackElo "2434"]
[TimeControl "180+1"]
[EndTime "11:05:52 PDT"]
[Termination "r31415 won by resignation"]

1. e4 {[%clk 0:03:00.9]} 1... e5 {[%clk 0:02:46]} 2. Nf3 {[%clk 0:03:00.4]} 2...
Nc6 {[%clk 0:02:46.4]} 3. Nc3 {[%clk 0:03:00.2]} 3... Nf6 {[%clk 0:02:46.7]} 4.
d4 {[%clk 0:02:59.9]} 4... exd4 {[%clk 0:02:47.6]} 5. Nxd4 {[%clk 0:03:00.5]}
5... Bb4 {[%clk 0:02:45.1]} 6. Nxc6 {[%clk 0:03:00.5]} 6... bxc6 {[%clk
0:02:45.9]} 7. Bd3 {[%clk 0:03:01.1]} 7... d5 {[%clk 0:02:46.3]} 8. exd5 {[%clk
0:03:01.6]} 8... O-O {[%clk 0:02:46.9]} 9. O-O {[%clk 0:03:00.3]} 9... cxd5
{[%clk 0:02:47.1]} 10. Bg5 {[%clk 0:02:59.4]} 10... c6 {[%clk 0:02:46.7]} 11.
Qf3 {[%clk 0:02:59.4]} 11... Bd6 {[%clk 0:02:45.6]} 12. h3 {[%clk 0:02:58.3]}
12... Rb8 {[%clk 0:02:42.8]} 13. b3 {[%clk 0:02:54]} 13... Be5 {[%clk
0:02:39.9]} 14. Bd2 {[%clk 0:02:53.3]} 14... Bb7 {[%clk 0:02:23.2]} 15. Rae1
{[%clk 0:02:44.6]} 15... Bd6 {[%clk 0:02:16.8]} 16. Ne2 {[%clk 0:02:22.6]} 16...
c5 {[%clk 0:02:02.2]} 17. Bg5 {[%clk 0:01:59.9]} 17... Be7 {[%clk 0:01:28.2]}
18. Ng3 {[%clk 0:01:48.2]} 18... c4 {[%clk 0:01:18.7]} 19. Nf5 {[%clk
0:01:42.3]} 19... Bb4 {[%clk 0:01:14]} 20. Nxg7 {[%clk 0:01:03.8]} 20... Kxg7
{[%clk 0:01:02.9]} 21. Re5 {[%clk 0:01:03.7]} 21... cxd3 {[%clk 0:00:54.4]} 22.
Qg3 {[%clk 0:00:30]} 22... Kh8 {[%clk 0:00:48.8]} 23. h4 {[%clk 0:00:23.5]} 0-1

[Event "*** SCC Grand Prix: Titled Tuesday Blitz"]
[Site "Chess.com"]
[Date "2020.07.14"]
[Round "6"]
[White "MarceloPlaya"]
[Black "verdest"]
[Result "1-0"]
[WhiteElo "2342"]
[BlackElo "2497"]
[TimeControl "180+1"]
[EndTime "11:05:54 PDT"]
[Termination "MarceloPlaya won by resignation"]

1. e4 {[%clk 0:02:59.9]} 1... c5 {[%clk 0:02:58.5]} 2. Nf3 {[%clk 0:02:56.8]}
2... Nc6 {[%clk 0:02:58.9]} 3. d4 {[%clk 0:02:56.4]} 3... cxd4 {[%clk
0:02:59.8]} 4. Nxd4 {[%clk 0:02:56.1]} 4... Nf6 {[%clk 0:03:00.2]} 5. Nc3 {[%clk
0:02:54.5]} 5... e5 {[%clk 0:02:58.4]} 6. Ndb5 {[%clk 0:02:53.7]} 6... d6 {[%clk
0:02:55.4]} 7. Bg5 {[%clk 0:02:52.8]} 7... a6 {[%clk 0:02:54.7]} 8. Na3 {[%clk
0:02:52]} 8... b5 {[%clk 0:02:54.7]} 9. Nd5 {[%clk 0:02:51.1]} 9... Be7 {[%clk
0:02:54.6]} 10. Nxe7 {[%clk 0:02:50.6]} 10... Qxe7 {[%clk 0:02:50.9]} 11. Bd3
{[%clk 0:02:46.3]} 11... h6 {[%clk 0:02:44.6]} 12. Be3 {[%clk 0:02:31.2]} 12...
O-O {[%clk 0:02:42.5]} 13. Qe2 {[%clk 0:02:23.4]} 13... Be6 {[%clk 0:02:37.3]}
14. O-O {[%clk 0:02:14.7]} 14... Rfd8 {[%clk 0:02:33.2]} 15. c4 {[%clk
0:02:07.6]} 15... b4 {[%clk 0:02:20.3]} 16. Nc2 {[%clk 0:02:05.1]} 16... a5
{[%clk 0:02:20.5]} 17. f4 {[%clk 0:01:57.8]} 17... exf4 {[%clk 0:02:15.7]} 18.
Bxf4 {[%clk 0:01:56.7]} 18... Ne5 {[%clk 0:02:11.7]} 19. Ne3 {[%clk 0:01:55.5]}
19... Nfd7 {[%clk 0:02:08.1]} 20. Nd5 {[%clk 0:01:51.6]} 20... Bxd5 {[%clk
0:02:06.6]} 21. exd5 {[%clk 0:01:50.9]} 21... Re8 {[%clk 0:02:05.9]} 22. Rae1
{[%clk 0:01:44.1]} 22... Nc5 {[%clk 0:01:54.3]} 23. Bb1 {[%clk 0:01:40]} 23...
Qh4 {[%clk 0:01:40.1]} 24. g3 {[%clk 0:01:29.3]} 24... Qh3 {[%clk 0:01:32]} 25.
b3 {[%clk 0:01:17.1]} 25... g6 {[%clk 0:01:20.2]} 26. Qd2 {[%clk 0:01:03.7]}
26... Kg7 {[%clk 0:00:47.5]} 27. Bxe5+ {[%clk 0:01:00.9]} 27... Rxe5 {[%clk
0:00:44.9]} 28. Rxe5 {[%clk 0:00:59.2]} 28... dxe5 {[%clk 0:00:45.8]} 29. Qf2
{[%clk 0:00:55.7]} 1-0

[Event "*** SCC Grand Prix: Titled Tuesday Blitz"]
[Site "Chess.com"]
[Date "2020.07.14"]
[Round "6"]
[White "FabianoCaruana"]
[Black "Shield12"]
[Result "1/2-1/2"]
[WhiteElo "3020"]
[BlackElo "2860"]
[TimeControl "180+1"]
[EndTime "11:05:55 PDT"]
[Termination "Game drawn by repetition"]

1. e4 {[%clk 0:03:00.9]} 1... c5 {[%clk 0:02:58.5]} 2. Nf3 {[%clk 0:03:01]} 2...
Nc6 {[%clk 0:02:58.9]} 3. Bb5 {[%clk 0:03:01]} 3... Nf6 {[%clk 0:02:59]} 4. Nc3
{[%clk 0:02:59.8]} 4... g6 {[%clk 0:02:59.3]} 5. e5 {[%clk 0:02:57.7]} 5... Ng4
{[%clk 0:02:59.1]} 6. Bxc6 {[%clk 0:02:58.1]} 6... dxc6 {[%clk 0:03:00]} 7. h3
{[%clk 0:02:58.6]} 7... Nh6 {[%clk 0:03:00.3]} 8. d3 {[%clk 0:02:59.2]} 8... Bg7
{[%clk 0:03:00.8]} 9. Qe2 {[%clk 0:02:59.8]} 9... Nf5 {[%clk 0:02:59.1]} 10. Bf4
{[%clk 0:02:59.5]} 10... b6 {[%clk 0:02:57.7]} 11. O-O {[%clk 0:02:59.2]} 11...
O-O {[%clk 0:02:56.6]} 12. Ne4 {[%clk 0:02:59.5]} 12... Nd4 {[%clk 0:02:54.4]}
13. Nxd4 {[%clk 0:02:59.3]} 13... cxd4 {[%clk 0:02:55.3]} 14. Rae1 {[%clk
0:02:58]} 14... c5 {[%clk 0:02:54.9]} 15. Qd2 {[%clk 0:02:55.5]} 15... Qd5
{[%clk 0:02:51.6]} 16. b3 {[%clk 0:02:39.5]} 16... Bb7 {[%clk 0:02:42.9]} 17. f3
{[%clk 0:02:38.4]} 17... Bxe5 {[%clk 0:02:34.1]} 18. Bxe5 {[%clk 0:02:38.6]}
18... Qxe5 {[%clk 0:02:35]} 19. Qh6 {[%clk 0:02:38.9]} 19... Qg7 {[%clk
0:02:33.5]} 20. Qh4 {[%clk 0:02:36.7]} 20... f6 {[%clk 0:02:30.1]} 21. Nd2
{[%clk 0:02:33.1]} 21... Bd5 {[%clk 0:02:27.7]} 22. f4 {[%clk 0:02:30.3]} 22...
Rae8 {[%clk 0:02:24.8]} 23. Qg3 {[%clk 0:02:29]} 23... h6 {[%clk 0:02:20.3]} 24.
Rf2 {[%clk 0:02:28.9]} 24... Kh7 {[%clk 0:02:19.9]} 25. Rfe2 {[%clk 0:02:28.6]}
25... e6 {[%clk 0:02:15.8]} 26. Nf3 {[%clk 0:02:23.2]} 26... g5 {[%clk
0:02:13.1]} 27. f5 {[%clk 0:02:19.1]} 27... e5 {[%clk 0:02:11.3]} 28. Nd2 {[%clk
0:02:19.2]} 28... b5 {[%clk 0:02:04.2]} 29. Ne4 {[%clk 0:02:18.5]} 29... Bxe4
{[%clk 0:02:00.4]} 30. Rxe4 {[%clk 0:02:19.4]} 30... Rc8 {[%clk 0:01:59.2]} 31.
Qf3 {[%clk 0:02:16.7]} 31... Qf7 {[%clk 0:01:56.9]} 32. R4e2 {[%clk 0:02:13.2]}
32... h5 {[%clk 0:01:53.7]} 33. Rc1 {[%clk 0:02:04.7]} 33... Rc7 {[%clk
0:01:52.8]} 34. c4 {[%clk 0:02:03.3]} 34... dxc3 {[%clk 0:01:32.4]} 35. Rxc3
{[%clk 0:02:03]} 35... Rd8 {[%clk 0:01:32.6]} 36. Rec2 {[%clk 0:02:01.3]} 36...
Rdc8 {[%clk 0:01:30]} 37. a4 {[%clk 0:01:50.6]} 37... b4 {[%clk 0:01:18.2]} 38.
Rc4 {[%clk 0:01:50.5]} 38... a5 {[%clk 0:01:16.6]} 39. Rc1 {[%clk 0:01:43.4]}
39... Kh6 {[%clk 0:01:16]} 40. Qe3 {[%clk 0:01:43.7]} 40... Qe7 {[%clk
0:01:15.5]} 41. h4 {[%clk 0:01:44.1]} 41... Kh7 {[%clk 0:00:56.3]} 42. hxg5
{[%clk 0:01:43.4]} 42... fxg5 {[%clk 0:00:57.2]} 43. Qe4 {[%clk 0:01:40.8]}
43... Qf6 {[%clk 0:00:55.6]} 44. Rf1 {[%clk 0:01:32.2]} 44... Kh6 {[%clk
0:00:55.3]} 45. Rfc1 {[%clk 0:01:28.7]} 45... Kh7 {[%clk 0:00:54.1]} 46. Re1
{[%clk 0:01:27.7]} 46... Rd8 {[%clk 0:00:40.4]} 47. Rec1 {[%clk 0:01:18]} 47...
Rdc8 {[%clk 0:00:40.2]} 1/2-1/2

[Event "*** SCC Grand Prix: Titled Tuesday Blitz"]
[Site "Chess.com"]
[Date "2020.07.14"]
[Round "6"]
[White "aNaartjieZA"]
[Black "attack2mateU"]
[Result "0-1"]
[WhiteElo "2485"]
[BlackElo "2657"]
[TimeControl "180+1"]
[EndTime "11:05:57 PDT"]
[Termination "attack2mateU won by resignation"]

1. e4 {[%clk 0:03:00.9]} 1... c5 {[%clk 0:02:59.6]} 2. Nf3 {[%clk 0:03:01.1]}
2... d6 {[%clk 0:02:59.7]} 3. g3 {[%clk 0:03:01.2]} 3... Nc6 {[%clk 0:02:59.1]}
4. Bg2 {[%clk 0:03:01.1]} 4... g6 {[%clk 0:02:59.1]} 5. O-O {[%clk 0:03:01.1]}
5... Bg7 {[%clk 0:02:59.6]} 6. c3 {[%clk 0:03:01.4]} 6... Nf6 {[%clk 0:02:57]}
7. Re1 {[%clk 0:03:01.6]} 7... Bg4 {[%clk 0:02:46.3]} 8. h3 {[%clk 0:03:01.3]}
8... Bxf3 {[%clk 0:02:46.1]} 9. Qxf3 {[%clk 0:03:02.2]} 9... Nd7 {[%clk
0:02:43.6]} 10. Qd1 {[%clk 0:03:01.9]} 10... O-O {[%clk 0:02:41.1]} 11. d3
{[%clk 0:03:02]} 11... Rb8 {[%clk 0:02:32.9]} 12. a4 {[%clk 0:02:59.3]} 12... a6
{[%clk 0:02:31.1]} 13. Be3 {[%clk 0:02:53.9]} 13... Qc7 {[%clk 0:02:29.4]} 14.
f4 {[%clk 0:02:52.1]} 14... b5 {[%clk 0:02:29]} 15. axb5 {[%clk 0:02:51.2]}
15... axb5 {[%clk 0:02:29.9]} 16. d4 {[%clk 0:02:51.4]} 16... b4 {[%clk
0:02:22.5]} 17. Nd2 {[%clk 0:02:45.8]} 17... cxd4 {[%clk 0:02:21.8]} 18. cxd4
{[%clk 0:02:44.4]} 18... Bxd4 {[%clk 0:02:21.1]} 19. Bxd4 {[%clk 0:02:38.3]}
19... Nxd4 {[%clk 0:02:22]} 20. Rc1 {[%clk 0:02:38.5]} 20... Qa7 {[%clk
0:02:08.5]} 21. Kh2 {[%clk 0:02:37.7]} 21... Nc5 {[%clk 0:02:06.2]} 22. Nc4
{[%clk 0:02:34.5]} 22... Ncb3 {[%clk 0:02:04.6]} 23. Rb1 {[%clk 0:02:32.6]}
23... Rfc8 {[%clk 0:02:04.9]} 24. Ne3 {[%clk 0:02:32.4]} 24... Rc5 {[%clk
0:01:48.6]} 25. f5 {[%clk 0:02:27.2]} 25... Rbc8 {[%clk 0:01:47.1]} 26. fxg6
{[%clk 0:02:24.1]} 26... hxg6 {[%clk 0:01:47]} 27. Qg4 {[%clk 0:02:23.3]} 27...
Nc2 {[%clk 0:01:38]} 28. Nd5 {[%clk 0:02:06.8]} 28... Nxe1 {[%clk 0:01:35.3]}
29. Rxe1 {[%clk 0:02:06.8]} 29... Rc2 {[%clk 0:01:17.7]} 30. Re3 {[%clk
0:02:05]} 30... Nd4 {[%clk 0:01:04.7]} 31. h4 {[%clk 0:01:59.8]} 31... Ne6
{[%clk 0:00:35.7]} 32. h5 {[%clk 0:01:54.3]} 32... Kg7 {[%clk 0:00:31.8]} 33.
Rf3 {[%clk 0:01:46.8]} 33... Rh8 {[%clk 0:00:19]} 34. Rxf7+ {[%clk 0:01:43]}
34... Kxf7 {[%clk 0:00:19.5]} 35. Qxg6+ {[%clk 0:01:42.9]} 35... Kf8 {[%clk
0:00:20]} 36. h6 {[%clk 0:01:37.5]} 36... Qf2 {[%clk 0:00:17.8]} 37. Kh3 {[%clk
0:01:37.3]} 37... Qxg2+ {[%clk 0:00:16.6]} 38. Kh4 {[%clk 0:01:37.6]} 38... Qh2+
{[%clk 0:00:13.5]} 39. Kg4 {[%clk 0:01:37.7]} 39... Qxh6 {[%clk 0:00:12.2]} 40.
Qf5+ {[%clk 0:01:35.4]} 40... Ke8 {[%clk 0:00:10.8]} 0-1

[Event "*** SCC Grand Prix: Titled Tuesday Blitz"]
[Site "Chess.com"]
[Date "2020.07.14"]
[Round "6"]
[White "Lenyas66"]
[Black "snap_man"]
[Result "1-0"]
[WhiteElo "2487"]
[BlackElo "2315"]
[TimeControl "180+1"]
[EndTime "11:05:57 PDT"]
[Termination "Lenyas66 won by resignation"]

1. e4 {[%clk 0:03:00.9]} 1... c6 {[%clk 0:02:59.9]} 2. d4 {[%clk 0:03:00.4]}
2... d5 {[%clk 0:03:00.8]} 3. exd5 {[%clk 0:03:00.4]} 3... cxd5 {[%clk
0:03:01.1]} 4. Bd3 {[%clk 0:03:00.6]} 4... Nc6 {[%clk 0:03:00.6]} 5. c3 {[%clk
0:03:00.7]} 5... Nf6 {[%clk 0:03:00.5]} 6. Bf4 {[%clk 0:03:00.6]} 6... g6 {[%clk
0:02:59.6]} 7. Nf3 {[%clk 0:03:00]} 7... Bg7 {[%clk 0:02:59.8]} 8. O-O {[%clk
0:02:59.9]} 8... Bg4 {[%clk 0:02:53.1]} 9. Nbd2 {[%clk 0:02:49.2]} 9... O-O
{[%clk 0:02:35]} 10. Qb3 {[%clk 0:02:45.8]} 10... Nh5 {[%clk 0:02:21.2]} 11. Be3
{[%clk 0:02:42.3]} 11... Rb8 {[%clk 0:02:21.3]} 12. Rfe1 {[%clk 0:02:30.6]}
12... b5 {[%clk 0:02:20.7]} 13. h3 {[%clk 0:02:23.1]} 13... Bxf3 {[%clk
0:02:14.7]} 14. Nxf3 {[%clk 0:02:22.5]} 14... b4 {[%clk 0:02:14.2]} 15. Rac1
{[%clk 0:02:14.7]} 15... bxc3 {[%clk 0:01:30.7]} 16. Qxc3 {[%clk 0:02:14.1]}
16... Nb4 {[%clk 0:01:29]} 17. Bb1 {[%clk 0:02:12.8]} 17... Qd7 {[%clk
0:01:28.6]} 18. Ne5 {[%clk 0:02:07]} 18... Qb5 {[%clk 0:01:17.1]} 19. a3 {[%clk
0:02:04.5]} 19... Na6 {[%clk 0:01:15.8]} 20. b4 {[%clk 0:02:04.7]} 20... Qb7
{[%clk 0:01:03.2]} 21. Qc6 {[%clk 0:01:56.3]} 21... Nf6 {[%clk 0:00:49.3]} 22.
Bd3 {[%clk 0:01:55.9]} 22... Nxb4 {[%clk 0:00:40.3]} 23. Qxb7 {[%clk 0:01:50.2]}
23... Rxb7 {[%clk 0:00:41.2]} 24. axb4 {[%clk 0:01:50]} 24... Rxb4 {[%clk
0:00:41.3]} 25. Nc6 {[%clk 0:01:50.2]} 25... Rb7 {[%clk 0:00:39.2]} 26. Ba6
{[%clk 0:01:48.7]} 26... Rd7 {[%clk 0:00:38.8]} 27. Bf4 {[%clk 0:01:43.7]} 27...
h6 {[%clk 0:00:36.5]} 28. Nxe7+ {[%clk 0:01:41.9]} 28... Kh7 {[%clk 0:00:36.6]}
29. Nc6 {[%clk 0:01:35.8]} 29... Ne4 {[%clk 0:00:36.1]} 30. f3 {[%clk
0:01:32.2]} 30... Nf6 {[%clk 0:00:36.2]} 31. Be5 {[%clk 0:01:28.1]} 31... h5
{[%clk 0:00:33]} 32. Ra1 {[%clk 0:01:27.3]} 32... Ne8 {[%clk 0:00:25.3]} 33. Bd3
{[%clk 0:01:23.6]} 33... f6 {[%clk 0:00:24.5]} 34. Bf4 {[%clk 0:01:19.4]} 34...
Nd6 {[%clk 0:00:21.6]} 35. Rxa7 {[%clk 0:01:17.3]} 1-0

[Event "*** SCC Grand Prix: Titled Tuesday Blitz"]
[Site "Chess.com"]
[Date "2020.07.14"]
[Round "6"]
[White "onnoelgersma"]
[Black "The_Machine04"]
[Result "1-0"]
[WhiteElo "2429"]
[BlackElo "2287"]
[TimeControl "180+1"]
[EndTime "11:05:57 PDT"]
[Termination "onnoelgersma won by resignation"]

1. e4 {[%clk 0:03:00.9]} 1... d6 {[%clk 0:03:00.9]} 2. d4 {[%clk 0:02:55.7]}
2... Nf6 {[%clk 0:03:00.1]} 3. Nc3 {[%clk 0:02:56.1]} 3... e5 {[%clk 0:02:58.8]}
4. Nf3 {[%clk 0:02:56.2]} 4... Nbd7 {[%clk 0:02:55.5]} 5. Bc4 {[%clk 0:02:56.3]}
5... Be7 {[%clk 0:02:55.4]} 6. O-O {[%clk 0:02:56.2]} 6... c6 {[%clk 0:02:55.2]}
7. a4 {[%clk 0:02:56.3]} 7... O-O {[%clk 0:02:54.9]} 8. Re1 {[%clk 0:02:56.2]}
8... b6 {[%clk 0:02:54.3]} 9. h3 {[%clk 0:02:55.1]} 9... a6 {[%clk 0:02:50]} 10.
d5 {[%clk 0:02:45.6]} 10... cxd5 {[%clk 0:02:43.1]} 11. Nxd5 {[%clk 0:02:45.6]}
11... Nxd5 {[%clk 0:02:40.2]} 12. Bxd5 {[%clk 0:02:46.5]} 12... Rb8 {[%clk
0:02:40.1]} 13. c3 {[%clk 0:02:38.5]} 13... Nf6 {[%clk 0:02:39.9]} 14. Ba2
{[%clk 0:02:38.1]} 14... Bb7 {[%clk 0:02:38.7]} 15. Nd2 {[%clk 0:02:35.1]} 15...
Qc7 {[%clk 0:02:36.9]} 16. Qe2 {[%clk 0:02:31]} 16... Rfe8 {[%clk 0:02:35.3]}
17. Bb1 {[%clk 0:02:17.8]} 17... Bf8 {[%clk 0:02:25.7]} 18. Nf1 {[%clk
0:02:15.6]} 18... d5 {[%clk 0:02:16.1]} 19. exd5 {[%clk 0:02:15.5]} 19... Bxd5
{[%clk 0:02:17]} 20. Bg5 {[%clk 0:02:14.6]} 20... Nd7 {[%clk 0:02:05.9]} 21. Qd3
{[%clk 0:02:09.3]} 21... g6 {[%clk 0:01:22.5]} 22. Qxd5 {[%clk 0:02:04.6]} 22...
Bg7 {[%clk 0:01:22.4]} 23. Ng3 {[%clk 0:01:54.1]} 23... Nc5 {[%clk 0:01:16.1]}
24. Ne4 {[%clk 0:01:45.9]} 24... Nxe4 {[%clk 0:01:14.7]} 25. Bxe4 {[%clk
0:01:44.1]} 25... b5 {[%clk 0:01:12.3]} 26. Qc6 {[%clk 0:01:36]} 26... Qxc6
{[%clk 0:01:06.4]} 27. Bxc6 {[%clk 0:01:36.9]} 27... Rec8 {[%clk 0:01:06.9]} 28.
axb5 {[%clk 0:01:35.1]} 28... axb5 {[%clk 0:01:06.2]} 29. Bd5 {[%clk 0:01:35.8]}
29... Rc7 {[%clk 0:01:01.7]} 30. Rec1 {[%clk 0:01:24]} 30... h6 {[%clk
0:01:01.3]} 31. Be3 {[%clk 0:01:21.4]} 31... Rd8 {[%clk 0:00:55.8]} 32. Rd1
{[%clk 0:01:16.9]} 32... Rb8 {[%clk 0:00:50.8]} 33. Rac1 {[%clk 0:01:13.1]}
33... b4 {[%clk 0:00:39.8]} 34. cxb4 {[%clk 0:01:10.8]} 34... Rxc1 {[%clk
0:00:39]} 35. Rxc1 {[%clk 0:01:11.7]} 35... Rxb4 {[%clk 0:00:36.1]} 36. b3
{[%clk 0:01:07.3]} 36... Rb8 {[%clk 0:00:32]} 37. Rc7 {[%clk 0:01:05.6]} 37...
Rf8 {[%clk 0:00:30.1]} 1-0